[Event "1.FrauenBL 2018-19"]
[Site "Berlin"]
[Date "2019.03.01"]
[Round "9.6"]
[White "Kiefhaber, Veronika"]
[Black "Heinemann, Josefine"]
[Result "0-1"]
[ECO "B22"]
[WhiteElo "2151"]
[BlackElo "2238"]
[Annotator "NA"]
[PlyCount "90"]
[EventDate "2018.10.27"]
[EventType "team-tourn"]
[EventCountry "GER"]
[SourceTitle "playchess.com"]
[Source "ChessBase"]
[SourceQuality "1"]
[WhiteTeam "Karlsruher SF"]
[BlackTeam "OSG Baden-Baden"]
[TimeControl "40/5400+30:1800+30"]

1. e4 {[%emt 0:00:03]} c5 {[%emt 0:00:09]} 2. c3 {[%emt 0:00:13]} Nf6 {[%emt 0:00:10]} 3. e5 {[%emt 0:00:11]} Nd5 {[%emt 0:00:04]} 4. Nf3 {[%emt 0:00:19]} Nc6 {[%emt 0:00:20]} 5. Bc4 {[%emt 0:00:22]} Nb6 {[%emt 0:01:05]} 6. Bb3 {[%emt 0:00:14]} c4 {[%emt 0:00:32]} 7. Bc2 {[%emt 0:00:18]} d5 {[%emt 0:00:05]} 8. exd6 Qxd6 {[%emt 0:00:06]} 9. b3 {[%emt 0:05:48]} Bg4 {[%emt 0:06:15]} 10. bxc4 {[%emt 0:07:22]} Qe6+ {[%emt 0:06:36]} 11. Qe2 {[%emt 0:05:12]} Qxe2+ {[%emt 0:01:08]} 12. Kxe2 {[%emt 0:00:06]} Nxc4 {[%emt 0:00:14]} 13. d3 {[%emt 0:08:00]} N4e5 {[%emt 0:03:47]} 14. Nbd2 {[%emt 0:00:44]} O-O-O {[%emt 0:05:22]} 15. d4 {[%emt 0:08:52]} Nxf3 {[%emt 0:00:58]} 16. gxf3 {[%emt 0:00:24]} Bh5 {[%emt 0:04:23]} 17. Nc4 {[%emt 0:12:08]} e6 {[%emt 0:08:40]} 18. Rg1 {[%emt 0:04:00]} f6 {[%emt 0:06:01]} 19. Rb1 {[%emt 0:02:13]} Bf7 {[%emt 0:05:16]} 20. Bb3 {[%emt 0:05:12]} g6 {[%emt 0:06:25]} 21. Be3 {[%emt 0:03:20]} Be7 {[%emt 0:05:53]} 22. Rgd1 {[%emt 0:06:21]} g5 {[%emt 0:03:39]} 23. Nd2 {[%emt 0:03:22]} h6 {[%emt 0:02:38]} 24. a4 {[%emt 0:05:17]} Kc7 {[%emt 0:03:48]} 25. Bc4 {[%emt 0:01:51]} f5 {[%emt 0:05:36]} 26. Nb3 {[%emt 0:02:21]} Rhe8 {[%emt 0:05:21]} 27. Kf1 {[%emt 0:04:35]} Bd6 {[%emt 0:01:50]} 28. Kg2 {[%emt 0:00:55]} Ne7 {[%emt 0:01:42]} 29. Rb2 {[%emt 0:03:13]} Ng6 {[%emt 0:01:20]} 30. Kh1 {[%emt 0:00:57]} Nh4 {[%emt 0:00:57]} 31. Rdb1 {[%emt 0:01:43]} Rb8 {[%emt 0:03:03]} 32. Be2 {[%emt 0:01:03]} f4 {[%emt 0:00:51]} 33. Bd2 {[%emt 0:01:14]} e5 {[%emt 0:02:12]} 34. dxe5 {[%emt 0:01:12]} Rxe5 {[%emt 0:01:41]} 35. Nd4 {[%emt 0:00:18]} Bc5 {[%emt 0:01:13]} 36. Bd3 {[%emt 0:00:47]} Bd5 {[%emt 0:01:00]} 37. Be4 {[%emt 0:01:54]} Rxe4 {[%emt 0:01:33]} 38. Rb5 {[%emt 0:01:48]} b6 {[%emt 0:00:59]} 39. fxe4 {[%emt 0:00:42]} Bxe4+ {[%emt 0:00:04]} 40. f3 {[%emt 0:01:19]} Bxb1 {[%emt 0:00:09]} 41. Rxb1 {[%emt 0:33:42]} Bxd4 {[%emt 0:31:17]} 42. cxd4 {[%emt 0:00:33]} Nxf3 {[%emt 0:00:32]} 43. Bc3 {[%emt 0:00:22]} Re8 {[%emt 0:00:24]} 44. Rb2 {[%emt 0:00:00]} Re3 {[%emt 0:00:00]} 45. Rc2 {[%emt 0:00:00]} Kd6 {[%emt 0:00:00]} 0-1

[Event "1.FrauenBL 2018-19"]
[Site "Berlin"]
[Date "2019.03.01"]
[Round "9.6"]
[White "Storkebaum, Ulrike"]
[Black "Gvanceladze, Anna"]
[Result "1-0"]
[ECO "B19"]
[WhiteElo "1793"]
[BlackElo "2264"]
[Annotator "NA"]
[PlyCount "175"]
[EventDate "2018.10.27"]
[EventType "team-tourn"]
[EventCountry "GER"]
[SourceTitle "playchess.com"]
[Source "ChessBase"]
[SourceQuality "1"]
[WhiteTeam "Hofheim"]
[BlackTeam "Bad Koenigshofen"]
[TimeControl "40/5400+30:1800+30"]

1. e4 {[%emt 0:00:04]} c6 {[%emt 0:00:09]} 2. d4 {[%emt 0:00:11]} d5 {[%emt 0:00:06]} 3. Nc3 {[%emt 0:00:17]} dxe4 {[%emt 0:00:08]} 4. Nxe4 {[%emt 0:00:08]} Bf5 {[%emt 0:00:15]} 5. Ng3 {[%emt 0:00:00]} Bg6 {[%emt 0:00:07]} 6. Nf3 {[%emt 0:00:24]} Nd7 {[%emt 0:00:05]} 7. h4 {[%emt 0:00:00]} h6 {[%emt 0:00:15]} 8. h5 {[%emt 0:00:38]} Bh7 {[%emt 0:00:00]} 9. Bd3 {[%emt 0:00:04]} Bxd3 {[%emt 0:00:11]} 10. Qxd3 {[%emt 0:00:00]} e6 {[%emt 0:00:00]} 11. Be3 {[%emt 0:01:59]} Bb4+ {[%emt 0:01:04]} 12. c3 {[%emt 0:00:40]} Be7 {[%emt 0:00:06]} 13. O-O-O {[%emt 0:00:00]} Ngf6 {[%emt 0:00:05]} 14. Kb1 {[%emt 0:02:04]} O-O {[%emt 0:02:36]} 15. Ne4 {[%emt 0:10:41]} Nxe4 {[%emt 0:00:11]} 16. Qxe4 {[%emt 0:00:13]} Nf6 {[%emt 0:00:09]} 17. Qc2 {[%emt 0:02:50]} Qd5 {[%emt 0:03:15]} 18. c4 {[%emt 0:06:57]} Qe4 {[%emt 0:00:51]} 19. Qxe4 {[%emt 0:04:48]} Nxe4 {[%emt 0:21:55]} 20. Ne5 {[%emt 0:02:20]} Rfd8 {[%emt 0:00:00]} 21. f3 {[%emt 0:00:00]} Ng3 {[%emt 0:00:00]} 22. Rh3 {[%emt 0:04:07]} Nf5 {[%emt 0:00:00]} 23. f4 {[%emt 0:06:01]} Bc5 {[%emt 0:00:00]} 24. Bf2 {[%emt 0:00:00]} f6 {[%emt 0:03:58]} 25. Ng6 {[%emt 0:16:34]} Kf7 {[%emt 0:17:31]} 26. Rhd3 {[%emt 0:02:04]} Bb6 {[%emt 0:00:51]} 27. g4 {[%emt 0:03:08]} Nd6 {[%emt 0:06:02]} 28. b3 {[%emt 0:04:09]} Rd7 {[%emt 0:06:46]} 29. Be3 {[%emt 0:05:05]} Ne4 {[%emt 0:04:05]} 30. Kc2 {[%emt 0:02:26]} Rad8 {[%emt 0:00:35]} 31. c5 {[%emt 0:00:00]} Bc7 {[%emt 0:01:21]} 32. b4 {[%emt 0:09:18]} Rd5 {[%emt 0:02:46]} 33. Rf1 {[%emt 0:02:17]} Ng3 {[%emt 0:04:53]} 34. Re1 {[%emt 0:02:40]} f5 {[%emt 0:04:07]} 35. Bf2 {[%emt 0:02:33]} Ne4 {[%emt 0:00:36]} 36. Bh4 {[%emt 0:02:08]} R8d7 {[%emt 0:03:23]} 37. gxf5 {[%emt 0:00:00]} exf5 {[%emt 0:03:30]} 38. Red1 {[%emt 0:09:33]} Bd8 {[%emt 0:13:59]} 39. Be1 {[%emt 0:00:57]} Bf6 {[%emt 0:00:00]} 40. Ne5+ {[%emt 0:01:12]} Bxe5 {[%emt 0:00:00]} 41. dxe5 {[%emt 0:26:35]} Ke6 {[%emt 0:33:53]} 42. Rxd5 {[%emt 0:00:00]} cxd5 {[%emt 0:00:00]} 43. Kd3 {[%emt 0:00:00]} g5 {[%emt 0:00:00]} 44. hxg6 {[%emt 0:00:00]} Rg7 {[%emt 0:00:00]} 45. Rc1 {[%emt 0:00:00]} Kd7 {[%emt 0:00:00]} 46. Kd4 {[%emt 0:00:00]} Rxg6 {[%emt 0:00:00]} 47. Kxd5 {[%emt 0:00:00]} Rg2 {[%emt 0:00:00]} 48. e6+ {[%emt 0:00:00]} Ke7 {[%emt 0:00:00]} 49. Ke5 {[%emt 0:00:00]} Re2 {[%emt 0:00:00]} 50. Kxf5 {[%emt 0:00:00]} Nf6 {[%emt 0:00:00]} 51. Bh4 {[%emt 0:00:00]} Rxe6 {[%emt 0:00:00]} 52. Rg1 {[%emt 0:00:00]} Kf7 {[%emt 0:00:00]} 53. Rg6 {[%emt 0:00:00]} Ne8 {[%emt 0:00:00]} 54. Rg2 {[%emt 0:00:00]} Rc6 {[%emt 0:00:00]} 55. Ke5 {[%emt 0:07:01]} a6 {[%emt 0:00:00]} 56. f5 {[%emt 0:00:17]} Nc7 {[%emt 0:02:09]} 57. Rd2 {[%emt 0:00:00]} a5 {[%emt 0:00:14]} 58. a3 {[%emt 0:00:53]} axb4 {[%emt 0:00:17]} 59. axb4 {[%emt 0:00:06]} Kf8 {[%emt 0:00:30]} 60. Rd8+ {[%emt 0:01:06]} Ne8 {[%emt 0:00:08]} 61. Rd7 {[%emt 0:00:00]} b6 {[%emt 0:01:44]} 62. cxb6 {[%emt 0:01:57]} Rxb6 {[%emt 0:00:15]} 63. Be7+ {[%emt 0:00:17]} Kg8 {[%emt 0:01:11]} 64. Bc5 {[%emt 0:00:00]} Rc6 {[%emt 0:00:17]} 65. Rd8 {[%emt 0:00:56]} Kf7 {[%emt 0:00:06]} 66. Rd7+ {[%emt 0:00:00]} Kg8 {[%emt 0:00:02]} 67. Re7 {[%emt 0:00:49]} Nf6 {[%emt 0:01:18]} 68. Re6 {[%emt 0:00:31]} Nd7+ {[%emt 0:00:58]} 69. Kd5 {[%emt 0:00:28]} Rc8 {[%emt 0:00:39]} 70. Rxh6 {[%emt 0:00:09]} Kg7 {[%emt 0:00:03]} 71. Rg6+ {[%emt 0:01:04]} Kf7 {[%emt 0:00:02]} 72. Bd4 {[%emt 0:00:25]} Rc1 {[%emt 0:01:39]} 73. Rg7+ {[%emt 0:00:12]} Ke8 {[%emt 0:00:00]} 74. b5 {[%emt 0:00:40]} Rb1 {[%emt 0:00:44]} 75. Kc6 {[%emt 0:00:04]} Nb8+ {[%emt 0:00:34]} 76. Kb6 {[%emt 0:02:10]} Nd7+ {[%emt 0:01:06]} 77. Ka5 {[%emt 0:00:00]} Rd1 {[%emt 0:00:11]} 78. Bc3 {[%emt 0:01:24]} Rc1 {[%emt 0:00:29]} 79. Kb4 {[%emt 0:00:31]} Rb1+ {[%emt 0:00:38]} 80. Kc4 {[%emt 0:00:09]} Nb6+ {[%emt 0:00:02]} 81. Kd3 {[%emt 0:01:07]} Rxb5 {[%emt 0:00:11]} 82. Ke4 {[%emt 0:00:00]} Nd7 {[%emt 0:00:44]} 83. Kf4 {[%emt 0:00:00]} Rb3 84. Bd4 {[%emt 0:00:00]} Rb4 {[%emt 0:01:13]} 85. Ke3 {[%emt 0:01:50]} Rb1 {[%emt 0:00:30]} 86. Ke2 {[%emt 0:00:24]} Rb4 {[%emt 0:00:10]} 87. Ke3 {[%emt 0:00:00]} Rb1 {[%emt 0:00:03]} 88. Ke2 {[%emt 0:00:34]} 1-0

[Event "1.FrauenBL 2018-19"]
[Site "Berlin"]
[Date "2019.03.01"]
[Round "9.7"]
[White "Schleining, Zoya"]
[Black "Kashlinskaya, Alina"]
[Result "0-1"]
[ECO "A11"]
[WhiteElo "2344"]
[BlackElo "2470"]
[Annotator "ChessBase"]
[PlyCount "74"]
[EventDate "2018.10.27"]
[EventType "team-tourn"]
[EventCountry "GER"]
[SourceTitle "playchess.com"]
[Source "ChessBase"]
[SourceQuality "1"]
[WhiteTeam "SF Deizisau"]
[BlackTeam "SK Schwaebisch Hall"]
[TimeControl "40/5400+30:1800+30"]

1. Nf3 {[%emt 0:00:06]} d5 {[%emt 0:00:14]} 2. g3 {[%emt 0:00:19]} c6 {[%emt 0:01:46]} 3. Bg2 {[%emt 0:01:35]} Bg4 {[%emt 0:00:21]} 4. c4 {[%emt 0:02:49]} e6 {[%emt 0:01:58]} 5. cxd5 {[%emt 0:04:13]} Bxf3 {[%emt 0:01:20]} 6. Bxf3 {[%emt 0:00:00]} cxd5 {[%emt 0:02:58]} 7. O-O {[%emt 0:00:00]} Nc6 {[%emt 0:00:00]} 8. d4 {[%emt 0:06:42]} Nf6 {[%emt 0:00:00]} 9. Nc3 {[%emt 0:01:03]} Be7 {[%emt 0:04:49]} 10. b3 {[%emt 0:14:31]} Qa5 {[%emt 0:03:51]} 11. Na4 {[%emt 0:13:13]} b5 {[%emt 0:06:29]} 12. Nc5 {[%emt 0:00:00]} b4 {[%emt 0:14:03]} 13. Be3 {[%emt 0:00:00]} Rc8 {[%emt 0:10:26]} 14. Rc1 {[%emt 0:30:32]} Bxc5 {[%emt 0:03:57]} 15. Rxc5 {[%emt 0:00:00]} Qxa2 {[%emt 0:01:42]} 16. Qd3 {[%emt 0:03:21]} O-O {[%emt 0:24:00]} 17. Qb5 {[%emt 0:07:19]} Ne7 {[%emt 0:00:00]} 18. Rxc8 {[%emt 0:01:49]} Rxc8 {[%emt 0:00:00]} 19. Qxb4 {[%emt 0:00:21]} Nf5 {[%emt 0:00:00]} 20. Rc1 {[%emt 0:06:41]} Qa6 {[%emt 0:00:00]} 21. Rxc8+ {[%emt 0:00:00]} Qxc8 {[%emt 0:00:00]} 22. Bd2 {[%emt 0:02:04]} h6 {[%emt 0:18:14]} 23. Qc5 {[%emt 0:02:03]} Qa6 {[%emt 0:02:03]} 24. Kg2 {[%emt 0:00:30]} Qa2 {[%emt 0:00:00]} 25. Bb4 {[%emt 0:00:29]} Qxb3 {[%emt 0:00:00]} 26. e3 {[%emt 0:00:00]} Kh7 {[%emt 0:00:00]} 27. Qc3 {[%emt 0:00:00]} Qb1 {[%emt 0:00:00]} 28. Qe1 {[%emt 0:03:12]} Qb3 29. Qc3 {[%emt 0:00:14]} Qa4 {[%emt 0:04:25]} 30. Qa3 {[%emt 0:00:00]} Qb5 {[%emt 0:00:00]} 31. Bc5 {[%emt 0:01:05]} a5 {[%emt 0:00:00]} 32. Qa2 {[%emt 0:00:09]} Ne4 {[%emt 0:00:00]} 33. Be2 {[%emt 0:00:17]} Qb7 {[%emt 0:00:00]} 34. Qxa5 {[%emt 0:00:00]} Qb1 {[%emt 0:00:00]} 35. Qb5 {[%emt 0:00:00]} Qe1 {[%emt 0:00:00]} 36. f3 {[%emt 0:00:00]} Nxe3+ {[%emt 0:00:00]} 37. Kh3 {[%emt 0:00:00]} Nf2+ {[%emt 0:00:00] --- [%clk ] Ned1+ [%clk ] Rb6 [%clk ] --- [%clk ] Bf1 [%clk ] --- [%clk ] Qd7 [%clk ] --- [%clk ] Rb7 [%clk ] --- [%clk ] Bf8 [%clk ] --- [%clk ]} 0-1

[Event "1.FrauenBL 2018-19"]
[Site "Berlin"]
[Date "2019.03.01"]
[Round "9.7"]
[White "Sieber, Fiona"]
[Black "Burchardt, Brigitte"]
[Result "1-0"]
[ECO "B90"]
[WhiteElo "2331"]
[BlackElo "2158"]
[Annotator "NA"]
[PlyCount "69"]
[EventDate "2018.10.27"]
[EventType "team-tourn"]
[EventCountry "GER"]
[SourceTitle "playchess.com"]
[Source "ChessBase"]
[SourceQuality "1"]
[WhiteTeam "SK Lehrte"]
[BlackTeam "Pankow"]
[TimeControl "40/5400+30:1800+30"]

1. e4 {[%emt 0:00:05]} c5 {[%emt 0:00:05]} 2. Nf3 {[%emt 0:00:05]} d6 {[%emt 0:00:04]} 3. d4 {[%emt 0:00:04]} cxd4 {[%emt 0:00:06]} 4. Nxd4 {[%emt 0:00:04]} Nf6 {[%emt 0:00:16]} 5. Nc3 {[%emt 0:00:08]} a6 {[%emt 0:00:04]} 6. Be3 {[%emt 0:00:06]} e5 {[%emt 0:00:21]} 7. Nb3 {[%emt 0:00:06]} Be6 {[%emt 0:00:19]} 8. Qd2 {[%emt 0:00:18]} Nbd7 {[%emt 0:01:01]} 9. f3 {[%emt 0:00:12]} b5 {[%emt 0:01:18]} 10. g4 {[%emt 0:00:44]} Nb6 {[%emt 0:03:26]} 11. Bxb6 {[%emt 0:16:59]} Qxb6 {[%emt 0:00:07]} 12. O-O-O Be7 {[%emt 0:05:12]} 13. Kb1 {[%emt 0:02:59]} O-O {[%emt 0:02:01]} 14. h4 {[%emt 0:04:46]} b4 {[%emt 0:14:38]} 15. Nd5 {[%emt 0:02:55]} Bxd5 {[%emt 0:01:38]} 16. exd5 {[%emt 0:00:07]} a5 {[%emt 0:00:21]} 17. h5 {[%emt 0:02:20]} a4 {[%emt 0:00:50]} 18. Nc1 {[%emt 0:00:09]} Ra5 {[%emt 0:00:56]} 19. Bc4 {[%emt 0:11:27]} Rc8 {[%emt 0:06:29]} 20. b3 {[%emt 0:03:38]} a3 {[%emt 0:29:42]} 21. g5 {[%emt 0:03:28]} Ne8 {[%emt 0:05:11]} 22. f4 {[%emt 0:05:48]} f6 {[%emt 0:08:38]} 23. Qe2 {[%emt 0:27:36]} Qd8 {[%emt 0:09:04]} 24. Nd3 {[%emt 0:02:22]} fxg5 {[%emt 0:03:58]} 25. fxe5 {[%emt 0:00:16]} Rb8 {[%emt 0:01:22]} 26. h6 {[%emt 0:00:46]} g6 {[%emt 0:01:46]} 27. Rhf1 {[%emt 0:00:35]} Bf8 {[%emt 0:02:02]} 28. Qf3 {[%emt 0:06:16]} Nc7 {[%emt 0:01:28]} 29. Rde1 {[%emt 0:02:09]} Raa8 {[%emt 0:01:00]} 30. exd6 {[%emt 0:01:45]} Qxd6 {[%emt 0:00:33]} 31. Qf7+ {[%emt 0:02:40]} Kh8 {[%emt 0:00:02]} 32. Rf6 {[%emt 0:00:21]} Qd8 {[%emt 0:00:41]} 33. d6 {[%emt 0:00:22]} Ne6 {[%emt 0:00:57]} 34. Rfxe6 {[%emt 0:01:00]} Bxh6 {[%emt 0:00:48]} 35. Re7 {[%emt 0:00:27]} 1-0

[Event "1.FrauenBL 2018-19"]
[Site "Berlin"]
[Date "2019.03.01"]
[Round "9.7"]
[White "Koehler, Inken"]
[Black "Schmidt, Jade"]
[Result "0-1"]
[ECO "A08"]
[WhiteElo "1992"]
[BlackElo "2054"]
[Annotator "NA"]
[PlyCount "80"]
[EventDate "2018.10.27"]
[EventType "team-tourn"]
[EventCountry "GER"]
[SourceTitle "playchess.com"]
[Source "ChessBase"]
[SourceQuality "1"]
[WhiteTeam "TuRa Harksheide"]
[BlackTeam "Hamburger SK"]
[TimeControl "40/5400+30:1800+30"]

1. Nf3 {[%emt 0:00:03]} d5 {[%emt 0:00:26]} 2. g3 {[%emt 0:00:09]} c5 {[%emt 0:00:10]} 3. Bg2 {[%emt 0:00:24]} Nc6 {[%emt 0:00:10]} 4. O-O {[%emt 0:00:18]} e5 {[%emt 0:00:15]} 5. d3 {[%emt 0:00:07]} f6 {[%emt 0:00:26]} 6. c4 {[%emt 0:02:30]} d4 {[%emt 0:00:20]} 7. Na3 {[%emt 0:04:54]} Be6 {[%emt 0:01:51]} 8. Nc2 {[%emt 0:01:02]} Qd7 {[%emt 0:00:59]} 9. Re1 {[%emt 0:02:41]} Nge7 {[%emt 0:12:55]} 10. Rb1 {[%emt 0:10:54]} Nf5 {[%emt 0:05:00]} 11. Nd2 {[%emt 0:01:55]} Be7 {[%emt 0:02:36]} 12. Ne4 {[%emt 0:00:11]} g5 {[%emt 0:06:18]} 13. b4 {[%emt 0:11:48]} cxb4 {[%emt 0:16:09]} 14. Nxb4 {[%emt 0:00:23]} Nxb4 {[%emt 0:00:10]} 15. Rxb4 {[%emt 0:00:07]} Rb8 {[%emt 0:00:12]} 16. Rb3 {[%emt 0:08:58]} Kf7 {[%emt 0:09:41]} 17. Ba3 {[%emt 0:09:42]} b6 {[%emt 0:04:26]} 18. Bxe7 {[%emt 0:08:27]} Qxe7 {[%emt 0:01:49]} 19. Qb1 {[%emt 0:01:28]} Rbc8 {[%emt 0:01:38]} 20. Rc1 {[%emt 0:06:41]} Nd6 {[%emt 0:06:41]} 21. Nxd6+ {[%emt 0:04:04]} Qxd6 {[%emt 0:00:00]} 22. Qb2 {[%emt 0:06:57]} Rc5 {[%emt 0:05:12]} 23. Qa3 {[%emt 0:02:38]} Qd7 {[%emt 0:02:25]} 24. Rcb1 {[%emt 0:03:17]} Rhc8 {[%emt 0:02:03]} 25. Rb5 {[%emt 0:01:49]} Kg6 {[%emt 0:09:05]} 26. Bb7 {[%emt 0:02:51]} Rxb5 {[%emt 0:00:00]} 27. Be4+ {[%emt 0:00:34]} f5 {[%emt 0:00:50]} 28. Rxb5 {[%emt 0:00:04]} fxe4 {[%emt 0:02:39]} 29. Rxe5 {[%emt 0:00:04]} exd3 {[%emt 0:04:51]} 30. Qxd3+ {[%emt 0:00:33]} Bf5 {[%emt 0:00:00]} 31. Qd2 {[%emt 0:04:00]} Rc5 {[%emt 0:00:00]} 32. Rxc5 {[%emt 0:02:16]} bxc5 {[%emt 0:02:34]} 33. Qa5 {[%emt 0:00:00]} Qe7 {[%emt 0:01:33]} 34. Qa6+ {[%emt 0:00:00]} Kg7 {[%emt 0:00:00]} 35. Qc6 {[%emt 0:00:04]} d3 {[%emt 0:01:01]} 36. Qf3 {[%emt 0:02:32]} dxe2 {[%emt 0:00:35]} 37. Qc3+ {[%emt 0:00:00]} Kg8 {[%emt 0:00:19]} 38. Qe1 {[%emt 0:00:54]} Qe4 {[%emt 0:00:40]} 39. f3 {[%emt 0:00:00]} Qxf3 {[%emt 0:00:19]} 40. Qc1 {[%emt 0:00:16]} h6 {[%emt 0:00:00]} 0-1

[Event "1.FrauenBL 2018-19"]
[Site "Berlin"]
[Date "2019.03.01"]
[Round "9.8"]
[White "Atalik, Ekaterina"]
[Black "Klek, Hanna Marie"]
[Result "1-0"]
[ECO "D31"]
[WhiteElo "2450"]
[BlackElo "2313"]
[Annotator "ChessBase"]
[PlyCount "113"]
[EventDate "2018.10.27"]
[EventType "team-tourn"]
[EventCountry "GER"]
[SourceTitle "playchess.com"]
[Source "ChessBase"]
[SourceQuality "1"]
[WhiteTeam "SK Schwaebisch Hall"]
[BlackTeam "SF Deizisau"]
[TimeControl "40/5400+30:1800+30"]

1. d4 {[%emt 0:00:04]} d5 {[%emt 0:00:05]} 2. c4 {[%emt 0:00:09]} e6 {[%emt 0:00:07]} 3. Nc3 {[%emt 0:00:16]} a6 {[%emt 0:00:06]} 4. cxd5 {[%emt 0:01:14]} exd5 {[%emt 0:00:05]} 5. Bf4 {[%emt 0:00:23]} Nf6 {[%emt 0:00:06]} 6. e3 {[%emt 0:00:36]} Bd6 {[%emt 0:00:06]} 7. Bxd6 Qxd6 {[%emt 0:00:06]} 8. Bd3 {[%emt 0:03:26]} O-O 9. Nge2 {[%emt 0:02:39]} Re8 {[%emt 0:10:48]} 10. Ng3 {[%emt 0:03:12]} g6 {[%emt 0:03:38]} 11. O-O {[%emt 0:03:01]} Nbd7 {[%emt 0:00:37]} 12. Re1 {[%emt 0:03:12]} b6 {[%emt 0:05:32]} 13. Rc1 {[%emt 0:18:35]} c5 {[%emt 0:03:03]} 14. Bb1 {[%emt 0:03:12]} Bb7 {[%emt 0:01:17]} 15. dxc5 {[%emt 0:04:15]} bxc5 {[%emt 0:02:54]} 16. Nge4 {[%emt 0:03:29]} Qc6 {[%emt 0:05:44]} 17. Nxf6+ {[%emt 0:04:28]} Nxf6 {[%emt 0:00:06]} 18. Na4 {[%emt 0:14:35]} d4 {[%emt 0:02:33]} 19. e4 {[%emt 0:01:51]} Nxe4 {[%emt 0:07:26]} 20. f3 {[%emt 0:02:33]} Nf6 {[%emt 0:11:54]} 21. Nxc5 {[%emt 0:03:50]} Rxe1+ 22. Qxe1 {[%emt 0:00:05]} Rc8 {[%emt 0:08:38]} 23. Nb3 {[%emt 0:05:18]} Qb6 {[%emt 0:07:15]} 24. Rxc8+ {[%emt 0:01:18]} Bxc8 {[%emt 0:00:04]} 25. Qf2 {[%emt 0:01:32]} Qb4 {[%emt 0:02:50]} 26. Nxd4 {[%emt 0:05:10]} Bd7 {[%emt 0:00:24]} 27. Bd3 {[%emt 0:02:03]} Nd5 {[%emt 0:04:50]} 28. Bf1 {[%emt 0:07:08]} a5 {[%emt 0:01:43]} 29. g3 {[%emt 0:02:22]} h5 {[%emt 0:02:59]} 30. h4 {[%emt 0:01:41]} Nb6 {[%emt 0:04:58]} 31. a3 {[%emt 0:01:16]} Qd6 {[%emt 0:00:33]} 32. Kg2 {[%emt 0:00:59]} Na4 {[%emt 0:02:26]} 33. Qd2 {[%emt 0:00:58]} Qd5 {[%emt 0:01:52]} 34. b3 {[%emt 0:00:52]} Nc5 {[%emt 0:00:57]} 35. Bc4 {[%emt 0:00:56]} Qd6 {[%emt 0:00:14]} 36. Qe3 {[%emt 0:00:39]} Nb7 {[%emt 0:02:01]} 37. a4 {[%emt 0:00:34]} Qc5 {[%emt 0:00:54]} 38. Qe4 {[%emt 0:00:38]} Kg7 {[%emt 0:02:38]} 39. Qd5 {[%emt 0:00:36]} Qxd5 {[%emt 0:00:12]} 40. Bxd5 {[%emt 0:00:05]} Nc5 {[%emt 0:00:07]} 41. Kf2 {[%emt 0:30:32]} f6 {[%emt 0:30:36]} 42. Ke3 {[%emt 0:00:43]} g5 {[%emt 0:00:11]} 43. Kd2 {[%emt 0:00:00]} Kf8 {[%emt 0:00:00]} 44. Kc3 {[%emt 0:00:00]} Ke7 {[%emt 0:00:00]} 45. Kc4 {[%emt 0:00:00]} Kd6 {[%emt 0:00:00]} 46. Bf7 {[%emt 0:00:00]} Bh3 {[%emt 0:00:00]} 47. Bxh5 {[%emt 0:00:00]} Bf1+ {[%emt 0:00:00]} 48. Kc3 {[%emt 0:00:00]} Nd3 {[%emt 0:00:00]} 49. Bg6 {[%emt 0:00:00]} gxh4 {[%emt 0:00:00]} 50. Bxd3 {[%emt 0:00:00]} Bxd3 {[%emt 0:00:00]} 51. gxh4 {[%emt 0:00:00]} Bg6 {[%emt 0:00:00]} 52. b4 {[%emt 0:00:00]} axb4+ {[%emt 0:00:00]} 53. Kxb4 {[%emt 0:00:00]} Ke5 {[%emt 0:00:00]} 54. Kc5 {[%emt 0:00:00]} Kf4 {[%emt 0:00:00]} 55. a5 {[%emt 0:00:00]} Bd3 {[%emt 0:00:00]} 56. Kb6 {[%emt 0:00:00]} Ke5 {[%emt 0:00:00]} 57. a6 {[%emt 0:00:00]} 1-0

[Event "1.FrauenBL 2018-19"]
[Site "Berlin"]
[Date "2019.03.01"]
[Round "9.8"]
[White "Scognamiglio, Stefanie"]
[Black "Rosmait, Emily"]
[Result "1-0"]
[ECO "C54"]
[WhiteElo "2076"]
[BlackElo "1898"]
[Annotator "NA"]
[PlyCount "53"]
[EventDate "2018.10.27"]
[EventType "team-tourn"]
[EventCountry "GER"]
[SourceTitle "playchess.com"]
[Source "ChessBase"]
[SourceQuality "1"]
[WhiteTeam "Hamburger SK"]
[BlackTeam "TuRa Harksheide"]
[TimeControl "40/5400+30:1800+30"]

1. e4 {[%emt 0:00:03]} e5 {[%emt 0:00:07]} 2. Nf3 {[%emt 0:00:06]} Nc6 {[%emt 0:00:04]} 3. Bc4 {[%emt 0:00:06]} Bc5 {[%emt 0:00:09]} 4. c3 {[%emt 0:01:01]} Nf6 {[%emt 0:00:12]} 5. d4 {[%emt 0:01:32]} exd4 {[%emt 0:02:50]} 6. cxd4 {[%emt 0:00:08]} Bb4+ {[%emt 0:00:49]} 7. Bd2 {[%emt 0:00:06]} Bxd2+ {[%emt 0:00:08]} 8. Nbxd2 {[%emt 0:00:05]} d6 {[%emt 0:03:16]} 9. O-O {[%emt 0:02:26]} O-O {[%emt 0:00:36]} 10. Re1 {[%emt 0:02:13]} Ne7 {[%emt 0:09:57]} 11. Qb3 {[%emt 0:05:25]} c6 {[%emt 0:03:45]} 12. e5 {[%emt 0:08:39]} dxe5 {[%emt 0:05:02]} 13. dxe5 {[%emt 0:00:42]} Nfd5 {[%emt 0:00:11]} 14. Ne4 {[%emt 0:03:09]} Nb6 {[%emt 0:10:27]} 15. Bd3 {[%emt 0:08:58]} Be6 {[%emt 0:05:05]} 16. Qc2 {[%emt 0:01:25]} h6 {[%emt 0:00:59]} 17. Nc5 {[%emt 0:23:46]} Qc8 {[%emt 0:06:45]} 18. Nd4 {[%emt 0:06:25]} Bd5 {[%emt 0:03:55]} 19. f3 {[%emt 0:07:07]} Re8 {[%emt 0:08:18]} 20. e6 {[%emt 0:03:27]} fxe6 {[%emt 0:08:06]} 21. Ndxe6 {[%emt 0:03:44]} Bxe6 {[%emt 0:04:04]} 22. Nxe6 {[%emt 0:00:24]} Ned5 {[%emt 0:01:00]} 23. Bf5 {[%emt 0:00:18]} Qd7 {[%emt 0:04:11]} 24. Ng5 {[%emt 0:03:14]} Ne3 {[%emt 0:08:16]} 25. Rxe3 {[%emt 0:06:29]} Qd4 {[%emt 0:01:03]} 26. Bh7+ {[%emt 0:01:22]} Kf8 {[%emt 0:00:46]} 27. Qf5+ {[%emt 0:00:05]} 1-0